[Event "Late-Titled-Tuesday-Blitz-January-16-2024"]
[Site "Chess.com"]
[Date "2024.01.16"]
[Round "4"]
[White "Road2GM3000"]
[Black "Pachonpower"]
[Result "1-0"]
[WhiteElo "2487"]
[BlackElo "2265"]
[TimeControl "180+1"]
[EndTime "14:34:08 PST"]
[Termination "Road2GM3000 won by resignation"]

1. d4 {[%clk 0:03:00.9]} 1... f5 {[%clk 0:02:59.4]} 2. c4 {[%clk 0:03:00.8]}
2... e6 {[%clk 0:02:59.6]} 3. Nf3 {[%clk 0:03:01.5]} 3... Nf6 {[%clk 0:02:59.1]}
4. g3 {[%clk 0:03:01.9]} 4... b6 {[%clk 0:02:59]} 5. Bg2 {[%clk 0:03:02.5]} 5...
Bb7 {[%clk 0:02:59.5]} 6. O-O {[%clk 0:03:03.2]} 6... Be7 {[%clk 0:02:59.8]} 7.
Nc3 {[%clk 0:03:03.8]} 7... O-O {[%clk 0:02:59.4]} 8. d5 {[%clk 0:03:03.4]} 8...
Bb4 {[%clk 0:02:57.6]} 9. Bg5 {[%clk 0:03:00.7]} 9... Qe8 {[%clk 0:02:56.3]} 10.
Bxf6 {[%clk 0:02:56.1]} 10... Rxf6 {[%clk 0:02:55.9]} 11. Ne5 {[%clk 0:02:52.1]}
11... d6 {[%clk 0:02:52.6]} 12. Nd3 {[%clk 0:02:46]} 12... Bxc3 {[%clk
0:02:52.3]} 13. bxc3 {[%clk 0:02:46.9]} 13... e5 {[%clk 0:02:52.5]} 14. e4
{[%clk 0:02:47.5]} 14... f4 {[%clk 0:02:47.1]} 15. gxf4 {[%clk 0:02:47.4]} 15...
exf4 {[%clk 0:02:48]} 16. Qg4 {[%clk 0:02:40.2]} 16... Nd7 {[%clk 0:02:39.1]}
17. Nxf4 {[%clk 0:02:36.2]} 17... Ne5 {[%clk 0:02:39.1]} 18. Qh4 {[%clk
0:02:32.2]} 18... h6 {[%clk 0:01:50.7]} 19. Ne6 {[%clk 0:02:26.6]} 19... Bc8
{[%clk 0:01:48.4]} 20. f4 {[%clk 0:02:21.4]} 20... Nxc4 {[%clk 0:01:43.1]} 21.
Bh3 {[%clk 0:02:11.6]} 21... Ne3 {[%clk 0:01:34.8]} 22. Rf3 {[%clk 0:02:06.7]}
22... Nc4 {[%clk 0:01:31.6]} 23. Rg3 {[%clk 0:01:59.1]} 23... Bxe6 {[%clk
0:01:31.3]} 24. Qxf6 {[%clk 0:01:56.9]} 1-0

[Event "Late-Titled-Tuesday-Blitz-January-16-2024"]
[Site "Chess.com"]
[Date "2024.01.16"]
[Round "4"]
[White "Cheer_Down"]
[Black "SipkeErnst"]
[Result "0-1"]
[WhiteElo "2468"]
[BlackElo "2679"]
[TimeControl "180+1"]
[EndTime "14:34:12 PST"]
[Termination "SipkeErnst won by resignation"]

1. d4 {[%clk 0:02:49.1]} 1... d5 {[%clk 0:02:58.7]} 2. c4 {[%clk 0:02:48.6]}
2... c6 {[%clk 0:02:58.5]} 3. Nf3 {[%clk 0:02:47]} 3... Nf6 {[%clk 0:02:59.1]}
4. Nc3 {[%clk 0:02:46.9]} 4... dxc4 {[%clk 0:02:58.3]} 5. e4 {[%clk 0:02:42.7]}
5... b5 {[%clk 0:02:57.5]} 6. Be2 {[%clk 0:02:41.8]} 6... e6 {[%clk 0:02:56.9]}
7. O-O {[%clk 0:02:33.8]} 7... Be7 {[%clk 0:02:56.7]} 8. e5 {[%clk 0:02:29.2]}
8... Nd5 {[%clk 0:02:49.1]} 9. Ne4 {[%clk 0:02:29.1]} 9... Nd7 {[%clk 0:02:39]}
10. a4 {[%clk 0:02:26.4]} 10... Bb7 {[%clk 0:02:34.6]} 11. b3 {[%clk 0:02:22.3]}
11... O-O {[%clk 0:02:23.2]} 12. bxc4 {[%clk 0:02:21.8]} 12... bxc4 {[%clk
0:02:23.2]} 13. Bxc4 {[%clk 0:02:21.9]} 13... c5 {[%clk 0:02:23.7]} 14. Ba3
{[%clk 0:02:11.9]} 14... N5b6 {[%clk 0:02:21.2]} 15. Bd3 {[%clk 0:02:09]} 15...
cxd4 {[%clk 0:02:14.7]} 16. a5 {[%clk 0:01:56.8]} 16... Bxa3 {[%clk 0:02:03.6]}
17. Rxa3 {[%clk 0:01:52.4]} 17... Nc4 {[%clk 0:01:59.2]} 18. Ra4 {[%clk
0:01:44.4]} 18... Nb2 {[%clk 0:01:58.3]} 19. Qb3 {[%clk 0:01:31.3]} 19... Bxe4
{[%clk 0:01:58.3]} 20. Bxe4 {[%clk 0:01:27.9]} 20... Nxa4 {[%clk 0:01:58.1]} 21.
Qxa4 {[%clk 0:01:24.4]} 21... Nc5 {[%clk 0:01:57.3]} 0-1

[Event "Late-Titled-Tuesday-Blitz-January-16-2024"]
[Site "Chess.com"]
[Date "2024.01.16"]
[Round "4"]
[White "orestn"]
[Black "Anna20240"]
[Result "1-0"]
[WhiteElo "2435"]
[BlackElo "1015"]
[TimeControl "180+1"]
[EndTime "14:34:27 PST"]
[Termination "orestn won by resignation"]

1. e4 {[%clk 0:03:00.9]} 1... c6 {[%clk 0:02:58.7]} 2. d4 {[%clk 0:03:00.3]}
2... d5 {[%clk 0:02:59.3]} 3. Nc3 {[%clk 0:03:00.8]} 3... dxe4 {[%clk
0:02:58.4]} 4. Nxe4 {[%clk 0:03:01.7]} 4... Bf5 {[%clk 0:02:58.7]} 5. Ng3 {[%clk
0:03:01.3]} 5... Bg6 {[%clk 0:02:59.3]} 6. h4 {[%clk 0:03:01.1]} 6... h6 {[%clk
0:02:59.8]} 7. h5 {[%clk 0:03:01.1]} 7... Bh7 {[%clk 0:03:00.1]} 8. Nf3 {[%clk
0:03:01.9]} 8... Nd7 {[%clk 0:02:59.7]} 9. Bd3 {[%clk 0:03:01]} 9... Bxd3 {[%clk
0:02:59.8]} 10. Qxd3 {[%clk 0:03:01.9]} 10... Ngf6 {[%clk 0:03:00.2]} 11. Bd2
{[%clk 0:03:01.9]} 11... e6 {[%clk 0:03:00.9]} 12. O-O-O {[%clk 0:03:01.2]}
12... Qc7 {[%clk 0:03:01.5]} 13. Ne4 {[%clk 0:03:00.8]} 13... Nxe4 {[%clk
0:02:57.7]} 14. Qxe4 {[%clk 0:03:00.7]} 14... Nf6 {[%clk 0:02:58.4]} 15. Qe2
{[%clk 0:03:00]} 15... O-O-O {[%clk 0:02:59.1]} 16. g3 {[%clk 0:02:55.3]} 16...
Bd6 {[%clk 0:02:54.9]} 17. c4 {[%clk 0:02:49.2]} 17... Rhe8 {[%clk 0:02:49.9]}
18. Bc3 {[%clk 0:02:47.4]} 18... c5 {[%clk 0:02:32.5]} 19. dxc5 {[%clk
0:02:41.4]} 19... Bxc5 {[%clk 0:02:25.3]} 20. Ne5 {[%clk 0:02:41.3]} 20... Bd6
{[%clk 0:01:45.3]} 21. f4 {[%clk 0:02:38.5]} 21... Rg8 {[%clk 0:01:03.2]} 22.
Kb1 {[%clk 0:02:35.6]} 22... Kb8 {[%clk 0:00:59.4]} 23. Rd3 {[%clk 0:02:26.4]}
23... Bxe5 {[%clk 0:00:46.8]} 24. Bxe5 {[%clk 0:02:25.2]} 1-0

[Event "Late-Titled-Tuesday-Blitz-January-16-2024"]
[Site "Chess.com"]
[Date "2024.01.16"]
[Round "4"]
[White "GMFYHR1"]
[Black "chucksterf10"]
[Result "0-1"]
[WhiteElo "2459"]
[BlackElo "2634"]
[TimeControl "180+1"]
[EndTime "14:34:30 PST"]
[Termination "chucksterf10 won by checkmate"]

1. e4 {[%clk 0:03:00.9]} 1... g6 {[%clk 0:03:00.9]} 2. d4 {[%clk 0:03:00.6]}
2... Bg7 {[%clk 0:03:01.6]} 3. Nc3 {[%clk 0:03:00.8]} 3... a6 {[%clk 0:03:00.7]}
4. f4 {[%clk 0:02:59]} 4... b5 {[%clk 0:03:00.1]} 5. Nf3 {[%clk 0:02:58.3]} 5...
Bb7 {[%clk 0:03:00.6]} 6. Bd3 {[%clk 0:02:58.4]} 6... d6 {[%clk 0:03:00.7]} 7.
O-O {[%clk 0:02:58]} 7... Nd7 {[%clk 0:03:00.9]} 8. Qe2 {[%clk 0:02:49.9]} 8...
c5 {[%clk 0:03:01]} 9. e5 {[%clk 0:02:49.1]} 9... cxd4 {[%clk 0:02:59.9]} 10.
Nxd4 {[%clk 0:02:47.5]} 10... dxe5 {[%clk 0:03:00.3]} 11. fxe5 {[%clk 0:02:45]}
11... Nxe5 {[%clk 0:03:01.2]} 12. Nb3 {[%clk 0:02:40.9]} 12... Nxd3 {[%clk
0:03:00.8]} 13. cxd3 {[%clk 0:02:40.7]} 13... Nf6 {[%clk 0:03:01.1]} 14. Nc5
{[%clk 0:02:34]} 14... Bc6 {[%clk 0:03:01.4]} 15. N3e4 {[%clk 0:02:34.3]} 15...
Nxe4 {[%clk 0:03:01]} 16. Nxe4 {[%clk 0:02:33.5]} 16... O-O {[%clk 0:02:59.1]}
17. Bg5 {[%clk 0:02:29]} 17... Qd4+ {[%clk 0:02:58.1]} 18. Kh1 {[%clk
0:02:25.3]} 18... Qxb2 {[%clk 0:02:56.4]} 19. Qe3 {[%clk 0:02:18.9]} 19... Qd4
{[%clk 0:02:53.8]} 20. Qe2 {[%clk 0:02:12.1]} 20... Qxa1 {[%clk 0:02:49.8]} 21.
Rxa1 {[%clk 0:02:11.6]} 21... Bxa1 {[%clk 0:02:50.7]} 22. Bxe7 {[%clk
0:02:12.1]} 22... Rfe8 {[%clk 0:02:51.1]} 23. Bf6 {[%clk 0:01:59.6]} 23... Rxe4
{[%clk 0:02:51]} 24. dxe4 {[%clk 0:01:14.8]} 24... Bxf6 {[%clk 0:02:47.3]} 25.
Qc2 {[%clk 0:01:07.6]} 25... Bb7 {[%clk 0:02:40.6]} 26. h3 {[%clk 0:01:06.1]}
26... Re8 {[%clk 0:02:38.9]} 27. Qc7 {[%clk 0:01:03]} 27... Bxe4 {[%clk
0:02:32.7]} 28. Qb6 {[%clk 0:01:03.5]} 28... Re6 {[%clk 0:02:24.7]} 29. Qb8+
{[%clk 0:01:03.7]} 29... Kg7 {[%clk 0:02:23.7]} 30. Kg1 {[%clk 0:01:04.3]} 30...
Bd4+ {[%clk 0:02:23.3]} 31. Kf1 {[%clk 0:01:04.7]} 31... Bd3# {[%clk 0:02:21.9]}
0-1

[Event "Late-Titled-Tuesday-Blitz-January-16-2024"]
[Site "Chess.com"]
[Date "2024.01.16"]
[Round "4"]
[White "bescmelasti"]
[Black "tolimachess"]
[Result "1-0"]
[WhiteElo "2664"]
[BlackElo "2438"]
[TimeControl "180+1"]
[EndTime "14:34:41 PST"]
[Termination "bescmelasti won on time"]

1. e4 {[%clk 0:03:00.9]} 1... c5 {[%clk 0:02:59.3]} 2. Nf3 {[%clk 0:03:00.7]}
2... e6 {[%clk 0:02:58.1]} 3. c3 {[%clk 0:03:00.3]} 3... d5 {[%clk 0:02:56.4]}
4. exd5 {[%clk 0:02:59.9]} 4... exd5 {[%clk 0:02:57.3]} 5. d4 {[%clk 0:03:00.5]}
5... Nc6 {[%clk 0:02:57.4]} 6. Be2 {[%clk 0:02:57.4]} 6... cxd4 {[%clk
0:02:50.1]} 7. cxd4 {[%clk 0:02:58.3]} 7... Bd6 {[%clk 0:02:45.4]} 8. O-O {[%clk
0:02:58.9]} 8... Nge7 {[%clk 0:02:45.6]} 9. Nc3 {[%clk 0:02:56.8]} 9... O-O
{[%clk 0:02:45.5]} 10. Bg5 {[%clk 0:02:52.3]} 10... f6 {[%clk 0:02:45.4]} 11.
Bh4 {[%clk 0:02:52.6]} 11... Be6 {[%clk 0:02:44]} 12. Bg3 {[%clk 0:02:52]} 12...
Nf5 {[%clk 0:02:42.3]} 13. Re1 {[%clk 0:02:46.9]} 13... Qd7 {[%clk 0:02:39.4]}
14. Bb5 {[%clk 0:02:43.7]} 14... a6 {[%clk 0:02:37]} 15. Bxc6 {[%clk 0:02:43.7]}
15... bxc6 {[%clk 0:02:37.9]} 16. Rc1 {[%clk 0:02:36.7]} 1-0

[Event "Late-Titled-Tuesday-Blitz-January-16-2024"]
[Site "Chess.com"]
[Date "2024.01.16"]
[Round "4"]
[White "chesspreceptor"]
[Black "aceontheturn"]
[Result "1-0"]
[WhiteElo "2582"]
[BlackElo "2747"]
[TimeControl "180+1"]
[EndTime "14:34:53 PST"]
[Termination "chesspreceptor won by resignation"]

1. e4 {[%clk 0:03:00.9]} 1... e6 {[%clk 0:02:59]} 2. d3 {[%clk 0:02:57.3]} 2...
d5 {[%clk 0:02:59.9]} 3. Nd2 {[%clk 0:02:57.7]} 3... c5 {[%clk 0:03:00.4]} 4. g3
{[%clk 0:02:57.6]} 4... Nc6 {[%clk 0:03:00.5]} 5. Ngf3 {[%clk 0:02:57.9]} 5...
Bd6 {[%clk 0:03:00.5]} 6. Bg2 {[%clk 0:02:58.4]} 6... Nge7 {[%clk 0:03:01.2]} 7.
O-O {[%clk 0:02:59.1]} 7... O-O {[%clk 0:03:01.9]} 8. Re1 {[%clk 0:02:57.6]}
8... f6 {[%clk 0:03:02.4]} 9. c3 {[%clk 0:02:57.5]} 9... Bd7 {[%clk 0:03:00.6]}
10. Nf1 {[%clk 0:02:54.6]} 10... Qc7 {[%clk 0:03:00.3]} 11. h4 {[%clk
0:02:50.4]} 11... b5 {[%clk 0:02:59.1]} 12. h5 {[%clk 0:02:49.2]} 12... h6
{[%clk 0:02:28]} 13. Nh4 {[%clk 0:02:42.8]} 13... d4 {[%clk 0:02:18.6]} 14. cxd4
{[%clk 0:02:35.9]} 14... Nxd4 {[%clk 0:02:17.2]} 15. Be3 {[%clk 0:02:35.5]}
15... Rac8 {[%clk 0:02:07.4]} 16. Qd2 {[%clk 0:02:31.9]} 16... Be8 {[%clk
0:01:49.7]} 17. Rac1 {[%clk 0:02:27.5]} 17... Nec6 {[%clk 0:01:41.9]} 18. g4
{[%clk 0:02:06.2]} 18... Qa5 {[%clk 0:01:27.3]} 19. Qxa5 {[%clk 0:02:05.1]}
19... Nxa5 {[%clk 0:01:28.2]} 20. Bxd4 {[%clk 0:02:05.5]} 20... Bxh5 {[%clk
0:01:00.4]} 21. Bc3 {[%clk 0:01:57.1]} 21... b4 {[%clk 0:00:58.2]} 22. gxh5
{[%clk 0:01:57.1]} 22... bxc3 {[%clk 0:00:58.9]} 23. Rxc3 {[%clk 0:01:56.1]}
23... Be5 {[%clk 0:00:58.9]} 24. Rc2 {[%clk 0:01:56.1]} 24... Rfd8 {[%clk
0:00:58.6]} 25. Ng6 {[%clk 0:01:51.6]} 25... Bd4 {[%clk 0:00:58.1]} 26. Ne7+
{[%clk 0:01:51.2]} 1-0

[Event "Late-Titled-Tuesday-Blitz-January-16-2024"]
[Site "Chess.com"]
[Date "2024.01.16"]
[Round "4"]
[White "Doudou2015"]
[Black "SaiHanThiha"]
[Result "0-1"]
[WhiteElo "2212"]
[BlackElo "2582"]
[TimeControl "180+1"]
[EndTime "14:35:09 PST"]
[Termination "SaiHanThiha won by resignation"]

1. b3 {[%clk 0:03:00.9]} 1... Nf6 {[%clk 0:02:58.3]} 2. Bb2 {[%clk 0:03:01.8]}
2... d5 {[%clk 0:02:58.5]} 3. e3 {[%clk 0:02:59.3]} 3... Bf5 {[%clk 0:02:58.2]}
4. f4 {[%clk 0:02:58.1]} 4... e6 {[%clk 0:02:58.4]} 5. Nf3 {[%clk 0:02:58.5]}
5... Be7 {[%clk 0:02:48.5]} 6. Ne5 {[%clk 0:02:52]} 6... h6 {[%clk 0:02:37.7]}
7. Bd3 {[%clk 0:02:44.9]} 7... Bxd3 {[%clk 0:02:28.1]} 8. cxd3 {[%clk
0:02:45.8]} 8... O-O {[%clk 0:02:27.4]} 9. O-O {[%clk 0:02:44.3]} 9... Nfd7
{[%clk 0:02:20.1]} 10. Rf3 {[%clk 0:02:35.6]} 10... Nxe5 {[%clk 0:02:08.5]} 11.
Bxe5 {[%clk 0:02:33.4]} 11... Nd7 {[%clk 0:01:56.2]} 12. Bc3 {[%clk 0:02:32.9]}
12... Bf6 {[%clk 0:01:53.5]} 13. Rg3 {[%clk 0:02:33]} 13... d4 {[%clk
0:01:51.8]} 14. Bb2 {[%clk 0:02:05.9]} 14... dxe3 {[%clk 0:01:37.9]} 15. Bxf6
{[%clk 0:01:59.6]} 15... Qxf6 {[%clk 0:01:36]} 16. Nc3 {[%clk 0:01:59.8]} 16...
exd2 {[%clk 0:01:30.3]} 17. Qxd2 {[%clk 0:01:56.3]} 17... Rfd8 {[%clk 0:01:28]}
18. Rf1 {[%clk 0:01:54.1]} 18... Nc5 {[%clk 0:01:28]} 19. Qe2 {[%clk 0:01:52.6]}
19... Qxc3 {[%clk 0:01:26.1]} 20. Qg4 {[%clk 0:01:32.5]} 20... Qf6 {[%clk
0:01:23.6]} 21. f5 {[%clk 0:01:31.7]} 21... Rd4 {[%clk 0:01:21.2]} 22. Qh3
{[%clk 0:01:20.2]} 22... e5 {[%clk 0:01:17.5]} 0-1

[Event "Late-Titled-Tuesday-Blitz-January-16-2024"]
[Site "Chess.com"]
[Date "2024.01.16"]
[Round "4"]
[White "ChristopherYoo"]
[Black "SchmakAttack"]
[Result "1-0"]
[WhiteElo "2990"]
[BlackElo "2720"]
[TimeControl "180+1"]
[EndTime "14:35:11 PST"]
[Termination "ChristopherYoo won by resignation"]

1. Nf3 {[%clk 0:03:00.9]} 1... d5 {[%clk 0:02:59.2]} 2. e3 {[%clk 0:02:57.4]}
2... c5 {[%clk 0:02:58.3]} 3. b3 {[%clk 0:02:57]} 3... Nc6 {[%clk 0:02:49.8]} 4.
Bb5 {[%clk 0:02:55.9]} 4... e6 {[%clk 0:02:43.6]} 5. Bb2 {[%clk 0:02:55.1]} 5...
Ne7 {[%clk 0:02:43.1]} 6. Ne5 {[%clk 0:02:13.4]} 6... Qc7 {[%clk 0:02:33.1]} 7.
Qh5 {[%clk 0:02:04]} 7... Nf5 {[%clk 0:02:16.9]} 8. O-O {[%clk 0:01:57.4]} 8...
Bd6 {[%clk 0:02:10.1]} 9. f4 {[%clk 0:01:56.6]} 9... O-O {[%clk 0:01:30.3]} 10.
g4 {[%clk 0:01:47.6]} 10... g6 {[%clk 0:01:18.9]} 11. Qh3 {[%clk 0:01:44.1]}
11... Nfe7 {[%clk 0:01:18.9]} 12. Bxc6 {[%clk 0:01:27.6]} 12... Nxc6 {[%clk
0:01:18.2]} 13. Nxc6 {[%clk 0:01:26.7]} 13... bxc6 {[%clk 0:01:12.9]} 14. Bf6
{[%clk 0:01:22.7]} 14... Re8 {[%clk 0:00:56.5]} 15. Rf3 {[%clk 0:01:16.9]} 15...
e5 {[%clk 0:00:53.2]} 16. Qxh7+ {[%clk 0:01:16]} 1-0

[Event "Late-Titled-Tuesday-Blitz-January-16-2024"]
[Site "Chess.com"]
[Date "2024.01.16"]
[Round "4"]
[White "PawelCzarnota"]
[Black "Russian_berezka"]
[Result "0-1"]
[WhiteElo "2790"]
[BlackElo "2595"]
[TimeControl "180+1"]
[EndTime "14:35:28 PST"]
[Termination "Russian_berezka won by resignation"]

1. e4 {[%clk 0:02:55.2]} 1... g6 {[%clk 0:02:58.9]} 2. d4 {[%clk 0:02:54.9]}
2... Bg7 {[%clk 0:02:58.8]} 3. Nc3 {[%clk 0:02:55.8]} 3... d5 {[%clk 0:02:58.9]}
4. exd5 {[%clk 0:02:54.1]} 4... Nf6 {[%clk 0:02:58.6]} 5. Bc4 {[%clk 0:02:53.5]}
5... O-O {[%clk 0:02:55.6]} 6. Nge2 {[%clk 0:02:50]} 6... Nbd7 {[%clk
0:02:37.8]} 7. Bb3 {[%clk 0:02:50.2]} 7... Nb6 {[%clk 0:02:36.7]} 8. Nf4 {[%clk
0:02:50.4]} 8... a5 {[%clk 0:02:36.8]} 9. a4 {[%clk 0:02:48.9]} 9... Bg4 {[%clk
0:02:14.5]} 10. f3 {[%clk 0:02:48.3]} 10... Bf5 {[%clk 0:02:15]} 11. O-O {[%clk
0:02:48.7]} 11... g5 {[%clk 0:02:09.8]} 12. Nd3 {[%clk 0:02:40.9]} 12... h6
{[%clk 0:02:10.3]} 13. Nc5 {[%clk 0:02:39]} 13... Rb8 {[%clk 0:01:51]} 14. Qe2
{[%clk 0:02:24.7]} 14... Nfxd5 {[%clk 0:01:47.8]} 15. Nxd5 {[%clk 0:02:20.6]}
15... Nxd5 {[%clk 0:01:40.2]} 16. c3 {[%clk 0:02:19.4]} 16... b6 {[%clk
0:01:36.1]} 17. Nd3 {[%clk 0:02:19.9]} 17... c5 {[%clk 0:01:29.7]} 18. Ne5
{[%clk 0:02:06.4]} 18... Qd6 {[%clk 0:01:18.1]} 19. f4 {[%clk 0:01:57.6]} 19...
cxd4 {[%clk 0:01:15]} 20. cxd4 {[%clk 0:01:56.2]} 20... Nxf4 {[%clk 0:01:12.2]}
21. Bxf4 {[%clk 0:01:51.8]} 21... Qxd4+ {[%clk 0:01:09.3]} 22. Qe3 {[%clk
0:01:39.9]} 22... Bxe5 {[%clk 0:01:04.5]} 23. Bxg5 {[%clk 0:01:25.4]} 23... hxg5
{[%clk 0:00:57.2]} 0-1

[Event "Late-Titled-Tuesday-Blitz-January-16-2024"]
[Site "Chess.com"]
[Date "2024.01.16"]
[Round "4"]
[White "NMJeevanK"]
[Black "sansanathalia"]
[Result "1-0"]
[WhiteElo "2580"]
[BlackElo "2374"]
[TimeControl "180+1"]
[EndTime "14:35:29 PST"]
[Termination "NMJeevanK won by resignation"]

1. e4 {[%clk 0:03:00.9]} 1... c5 {[%clk 0:02:55]} 2. Nc3 {[%clk 0:02:58.9]} 2...
d6 {[%clk 0:02:53.5]} 3. f4 {[%clk 0:02:55.7]} 3... Nf6 {[%clk 0:02:51.8]} 4.
Nf3 {[%clk 0:02:55.9]} 4... e6 {[%clk 0:02:47.9]} 5. Bb5+ {[%clk 0:02:53.9]}
5... Bd7 {[%clk 0:02:47]} 6. Bc4 {[%clk 0:02:50.6]} 6... Be7 {[%clk 0:02:42.8]}
7. O-O {[%clk 0:02:48.5]} 7... a6 {[%clk 0:02:38.7]} 8. e5 {[%clk 0:02:47.3]}
8... Ng8 {[%clk 0:02:29.8]} 9. exd6 {[%clk 0:02:45]} 9... Bxd6 {[%clk
0:02:28.1]} 10. f5 {[%clk 0:02:37.1]} 10... e5 {[%clk 0:02:08.6]} 11. Ne4 {[%clk
0:02:26.6]} 11... Qe7 {[%clk 0:01:22.5]} 12. Nxd6+ {[%clk 0:02:16.1]} 12... Qxd6
{[%clk 0:01:23.4]} 13. Nxe5 {[%clk 0:02:15.9]} 13... Nh6 {[%clk 0:01:14.8]} 14.
d4 {[%clk 0:02:16]} 14... cxd4 {[%clk 0:01:10.8]} 15. Bxh6 {[%clk 0:02:14.7]}
15... Qxh6 {[%clk 0:00:53.4]} 16. Nxf7 {[%clk 0:02:03.2]} 16... Qc6 {[%clk
0:00:52.2]} 17. Qxd4 {[%clk 0:02:00.9]} 17... Kf8 {[%clk 0:00:18.8]} 18. Nxh8
{[%clk 0:01:58.4]} 18... b5 {[%clk 0:00:16.6]} 19. Bd5 {[%clk 0:01:55.1]} 19...
Qd6 {[%clk 0:00:16.6]} 20. Rae1 {[%clk 0:01:48.6]} 20... Nc6 {[%clk 0:00:16.1]}
21. Ng6+ {[%clk 0:01:45.6]} 1-0

[Event "Late-Titled-Tuesday-Blitz-January-16-2024"]
[Site "Chess.com"]
[Date "2024.01.16"]
[Round "4"]
[White "Nf3c5"]
[Black "enriquetejedor"]
[Result "0-1"]
[WhiteElo "2557"]
[BlackElo "2739"]
[TimeControl "180+1"]
[EndTime "14:35:31 PST"]
[Termination "enriquetejedor won on time"]

1. d4 {[%clk 0:02:53]} 1... d5 {[%clk 0:02:58.5]} 2. Nf3 {[%clk 0:02:53]} 2...
Nc6 {[%clk 0:02:57.1]} 3. Bf4 {[%clk 0:02:49.4]} 3... f6 {[%clk 0:02:57.5]} 4.
e3 {[%clk 0:02:48.6]} 4... g5 {[%clk 0:02:56]} 5. Bg3 {[%clk 0:02:48]} 5... h5
{[%clk 0:02:56.2]} 6. h4 {[%clk 0:02:28.3]} 6... g4 {[%clk 0:02:52.1]} 7. Ng1
{[%clk 0:02:24.1]} 7... Nh6 {[%clk 0:02:51.2]} 8. Bd3 {[%clk 0:02:24.1]} 8...
Nf5 {[%clk 0:02:46.2]} 9. Ne2 {[%clk 0:02:16.5]} 9... e5 {[%clk 0:02:46.3]} 10.
dxe5 {[%clk 0:01:45.6]} 10... fxe5 {[%clk 0:02:47.2]} 11. e4 {[%clk 0:01:46.1]}
11... dxe4 {[%clk 0:02:45.3]} 12. Bxe4 {[%clk 0:01:45.9]} 12... Qxd1+ {[%clk
0:02:41.1]} 13. Kxd1 {[%clk 0:01:46.8]} 13... Bc5 {[%clk 0:02:40.9]} 14. Nd2
{[%clk 0:01:24.9]} 14... Be6 {[%clk 0:02:31]} 15. Bxc6+ {[%clk 0:01:13.4]} 15...
bxc6 {[%clk 0:02:30.5]} 16. Ne4 {[%clk 0:01:14.3]} 16... O-O-O+ {[%clk
0:02:29.5]} 17. Ke1 {[%clk 0:01:13.3]} 17... Bb6 {[%clk 0:02:26.4]} 18. Rd1
{[%clk 0:01:04.2]} 18... Bd5 {[%clk 0:02:10]} 19. N2c3 {[%clk 0:00:39]} 19...
Ba5 {[%clk 0:02:02.3]} 20. Kf1 {[%clk 0:00:30]} 20... Bxe4 {[%clk 0:01:58.8]}
21. Rxd8+ {[%clk 0:00:06]} 21... Rxd8 {[%clk 0:01:57.7]} 0-1

[Event "Late-Titled-Tuesday-Blitz-January-16-2024"]
[Site "Chess.com"]
[Date "2024.01.16"]
[Round "4"]
[White "ToddBryant"]
[Black "Maxfan2008"]
[Result "0-1"]
[WhiteElo "2309"]
[BlackElo "2506"]
[TimeControl "180+1"]
[EndTime "14:36:08 PST"]
[Termination "Maxfan2008 won on time"]

1. e4 {[%clk 0:03:00.9]} 1... c5 {[%clk 0:02:59.5]} 2. Nf3 {[%clk 0:03:00]} 2...
d6 {[%clk 0:02:59.9]} 3. d4 {[%clk 0:02:59.4]} 3... cxd4 {[%clk 0:03:00.8]} 4.
Nxd4 {[%clk 0:03:00]} 4... Nf6 {[%clk 0:03:01.4]} 5. Nc3 {[%clk 0:03:00.1]} 5...
a6 {[%clk 0:03:01.9]} 6. Bg5 {[%clk 0:02:59.9]} 6... e6 {[%clk 0:03:01.3]} 7. f4
{[%clk 0:03:00]} 7... Be7 {[%clk 0:03:01.3]} 8. Qf3 {[%clk 0:03:00.3]} 8... Qc7
{[%clk 0:03:01.7]} 9. O-O-O {[%clk 0:03:00.4]} 9... Nbd7 {[%clk 0:03:01.7]} 10.
g4 {[%clk 0:03:00.2]} 10... b5 {[%clk 0:03:01.9]} 11. Bxf6 {[%clk 0:02:59.9]}
11... Nxf6 {[%clk 0:03:02.8]} 12. g5 {[%clk 0:03:00.6]} 12... Nd7 {[%clk
0:03:03.2]} 13. f5 {[%clk 0:03:01.3]} 13... O-O {[%clk 0:03:03.7]} 14. Qh5
{[%clk 0:02:49.4]} 14... b4 {[%clk 0:03:01]} 15. Rd3 {[%clk 0:02:49.8]} 15...
bxc3 {[%clk 0:03:00.3]} 16. bxc3 {[%clk 0:02:50.7]} 16... exf5 {[%clk
0:02:28.6]} 17. Rh3 {[%clk 0:02:40.6]} 17... h6 {[%clk 0:02:26.3]} 18. Nxf5
{[%clk 0:02:33.5]} 18... Ne5 {[%clk 0:02:19.2]} 19. gxh6 {[%clk 0:00:43]} 19...
g6 {[%clk 0:02:17.7]} 20. h7+ {[%clk 0:00:39]} 20... Kh8 {[%clk 0:02:17]} 21.
Qh6 {[%clk 0:00:31.4]} 21... gxf5 {[%clk 0:02:17.1]} 22. Rg1 {[%clk 0:00:16.7]}
22... Ng4 {[%clk 0:02:15.8]} 23. Qh5 {[%clk 0:00:08.2]} 23... Qc5 {[%clk
0:02:12.9]} 24. Rhg3 {[%clk 0:00:06.4]} 24... Qe5 {[%clk 0:02:06.1]} 25. Be2
{[%clk 0:00:06.1]} 25... Qf4+ {[%clk 0:02:03.5]} 26. Kb1 {[%clk 0:00:05.6]}
26... Be6 {[%clk 0:01:44.8]} 27. h3 {[%clk 0:00:02.5]} 27... Rab8+ {[%clk
0:01:43.1]} 28. Ka1 {[%clk 0:00:02.8]} 28... Qd2 {[%clk 0:01:37.2]} 29. hxg4
{[%clk 0:00:02.1]} 29... Qxc2 {[%clk 0:01:37.7]} 0-1